bitfinex-derivatives/quotes_ETHF0:USTF0_20260207
["timestamp","ask_amount","ask_price","bid_price","bid_amount"]
[1770453425683,3.07963587,2021.6,2020.4,19.4198085]
[1770453425982,2.9072796,2021.0,2019.9,3.55663948]
[1770453426190,43.61352768,2021.4,2018.4,3.07963587]
[1770453426191,3.42341559,2020.8,2019.7,3.55663948]
[1770453426381,3.42341559,2020.7,2019.7,3.56235477]
[1770453426582,3.42341559,2020.4,2019.7,0.00571529]
[1770453426783,6.32573763,2020.3,2019.7,0.00571529]
[1770453427281,2.90232204,2020.4,2019.7,3.69810746]
[1770453427582,1.00343079,2020.7,2019.7,3.69810746]
[1770453427786,0.00394067,2020.8,2019.7,3.69810746]
[1770453427981,8.70684524,2021.7,2019.7,3.69810746]
[1770453427982,43.53442621,2021.4,2019.8,0.24769]
[1770453428286,46.9578418,2021.7,2020.1,3.73060861]
[1770453428488,4.2685091,2021.6,2020.1,3.73060861]
[1770453428687,4.2685091,2021.5,2020.1,3.73060861]
[1770453428982,4.27461641,2021.5,2020.1,3.73060861]
[1770453429189,0.00610731,2021.5,2020.1,3.73060861]
[1770453429386,46.9578418,2022.3,2020.1,3.73060861]
[1770453429584,4.25164184,2022.2,2020.1,3.73060861]
[1770453429783,9.97726221,2022.1,2020.1,3.73060861]
[1770453429982,53.51168842,2022.1,2020.1,3.73060861]
[1770453430178,5.70246224,2021.9,2020.1,3.73060861]
[1770453430387,4.25164184,2021.8,2020.1,3.73060861]
[1770453430592,4.25164184,2021.7,2020.1,3.73060861]
[1770453430885,5.7077239,2021.9,2020.1,3.73060861]
[1770453431086,10.02467942,2021.8,2020.1,3.73060861]
[1770453431278,4.24963374,2021.7,2020.1,3.73060861]
[1770453431484,5.77504568,2021.8,2020.1,3.73060861]
[1770453431682,4.24850131,2021.7,2020.1,3.73060861]
[1770453431886,5.77504568,2021.8,2020.1,3.73060861]
[1770453432087,10.02423871,2021.7,2020.1,3.73060861]
[1770453432285,4.24709733,2021.6,2020.1,3.73060861]
[1770453432485,4.24709733,2021.5,2020.1,3.73060861]
[1770453432691,5.48954873,2021.9,2020.1,3.73060861]
[1770453432891,0.00526166,2021.9,2020.1,3.73060861]
[1770453433782,0.00526166,2021.9,2020.3,6.17596504]
[1770453433985,0.00526166,2021.9,2020.3,6.42358504]
[1770453434183,0.00526166,2021.9,2020.3,6.33753312]
[1770453434595,0.00526166,2021.9,2020.5,6.17596504]
[1770453435587,0.00526166,2021.9,2020.5,6.42356504]
[1770453435987,0.00526166,2021.9,2020.9,0.24755]
[1770453436288,5.57605546,2022.7,2021.2,6.17596504]
[1770453436688,5.67393725,2022.6,2021.2,6.17596504]
[1770453437097,0.00616224,2022.6,2021.2,6.1797994]
[1770453437291,0.00616224,2022.6,2021.5,6.17596504]
[1770453437991,0.00616224,2022.6,2021.5,6.42344504]
[1770453440697,5.56311017,2022.6,2021.5,6.42344504]
[1770453441997,4.3022206,2022.5,2021.5,6.42344504]
[1770453442297,5.56311017,2022.6,2021.5,6.42344504]
[1770453442498,4.30223944,2022.5,2021.5,6.42344504]
[1770453442692,0.00616224,2022.6,2021.7,6.17596504]
[1770453442886,0.00616224,2022.6,2022.5,6.17596504]
[1770453443092,49.10869688,2023.2,2022.5,6.17596504]
[1770453443492,43.53442621,2023.3,2022.5,6.17596504]
[1770453443701,43.53442621,2023.5,2022.5,6.42331504]
[1770453443899,49.11112078,2023.6,2022.6,0.24734]
[1770453444101,0.00390609,2023.5,2022.7,6.17596504]
[1770453444295,0.00390609,2023.5,2022.7,6.18097063]
[1770453446800,5.76905899,2023.5,2022.7,6.18097063]
[1770453447294,41.38248135,2023.8,2022.9,6.17596504]
[1770453447502,5.80458443,2024.3,2022.9,6.42326504]
[1770453447704,5.80458443,2024.3,2022.7,0.00500559]
[1770453447705,5.76656032,2024.3,2023.1,6.17596504]
[1770453448298,5.77159045,2024.3,2023.1,6.17596504]
[1770453449299,5.77504568,2024.2,2023.1,6.17596504]
[1770453450699,5.71670731,2023.9,2022.9,6.17596504]
[1770453452301,5.71680612,2023.7,2022.9,6.17596504]
[1770453453707,5.71680612,2023.7,2022.7,6.18097063]
[1770453454107,11.52139055,2023.7,2022.7,6.18097063]
[1770453454306,5.70446002,2023.5,2022.7,6.18097063]
[1770453455008,9.99677899,2023.4,2022.7,6.18097063]
[1770453455207,4.25586526,2023.3,2022.7,6.18097063]
[1770453455408,4.25586526,2023.2,2022.7,6.18097063]
[1770453455711,4.25586526,2023.1,2022.7,6.18097063]
[1770453455911,5.75720642,2023.3,2022.7,6.18097063]
[1770453456104,10.01145184,2023.2,2022.7,6.18097063]
[1770453456305,4.25424542,2023.1,2022.7,6.18097063]
[1770453456714,5.80458443,2023.6,2023.1,5.88318559]
[1770453457012,5.80458443,2023.9,2023.1,5.88318559]
[1770453457206,5.7485129,2024.0,2023.1,5.88318559]
[1770453457207,5.80458443,2023.8,2023.1,5.88318559]
[1770453457512,5.7485129,2024.0,2023.1,5.88318559]
[1770453458409,5.76587063,2023.8,2023.1,5.88318559]
[1770453458606,5.76587063,2023.7,2023.1,5.88318559]
[1770453459010,11.57045506,2023.9,2023.1,5.88318559]
[1770453459513,5.80458443,2023.9,2023.1,5.88318559]
[1770453459813,5.80458443,2024.0,2023.1,5.88318559]
[1770453460507,5.76587063,2023.9,2023.1,5.88318559]
[1770453460813,5.80458443,2024.0,2023.1,5.88318559]
[1770453461714,11.57045506,2024.1,2023.1,5.88318559]
[1770453462617,5.76587063,2024.0,2023.1,5.88318559]
[1770453463112,5.76587063,2024.0,2022.7,0.00500559]
[1770453463318,5.76587063,2023.2,2022.1,5.88318559]
[1770453463509,5.76587063,2023.2,2022.1,6.23818309]
[1770453463709,5.76587063,2023.0,2022.1,6.23818309]
[1770453464113,11.5987583,2023.0,2022.1,6.23818309]
[1770453464307,11.5987583,2023.0,2022.1,6.24346254]
[1770453464513,5.76587063,2022.9,2022.1,6.24346254]
[1770453464711,5.83288767,2023.0,2022.1,6.24346254]
[1770453466011,5.76587063,2022.9,2022.1,6.24346254]
[1770453466319,5.76587063,2022.8,2022.1,6.24346254]
[1770453466520,5.76587063,2022.7,2022.1,5.88846504]
[1770453466814,5.76587063,2022.6,2022.1,5.88846504]
[1770453467022,5.83288767,2022.7,2022.1,5.88846504]
[1770453467205,5.83288767,2022.7,2022.1,6.24732137]
[1770453468118,5.83288767,2022.6,2022.1,6.24732137]
[1770453470820,11.5987583,2022.6,2022.1,6.24732137]
[1770453471018,5.76587063,2022.4,2021.6,5.88318559]
[1770453471218,5.76587063,2022.4,2021.6,6.23728926]
[1770453471817,11.5987583,2022.4,2021.6,6.23728926]
[1770453472016,5.83288767,2022.5,2022.3,5.88318559]
[1770453472216,5.76587063,2022.7,2021.6,0.36002057]
[1770453472514,5.76587063,2022.2,2021.6,0.36107257]
[1770453472720,11.5987583,2022.2,2021.6,6.24425816]
[1770453472919,5.76587063,2022.2,2021.6,6.24425816]
[1770453473511,11.5987583,2022.4,2021.6,6.24425816]
[1770453473712,5.83247436,2022.5,2021.6,6.24425816]
[1770453473917,5.77211189,2022.8,2021.6,6.24425816]
[1770453477028,5.76587063,2022.5,2021.6,6.24425816]
[1770453477830,5.76587063,2022.5,2021.6,0.36107257]
[1770453478329,5.76587063,2022.5,2021.6,6.24425816]
[1770453480228,5.76587063,2022.4,2021.6,6.24425816]
[1770453481427,49.47853308,2022.6,2021.6,6.24425816]
[1770453481732,49.47853308,2022.7,2021.6,6.49171816]
[1770453481931,43.71890371,2022.8,2021.7,0.24745]
[1770453482131,43.71266245,2022.7,2021.8,5.88318559]
[1770453482932,43.71890371,2022.8,2022.0,5.88318559]
[1770453483833,0.00624126,2022.8,2022.1,0.2474]
[1770453484135,0.00624126,2022.8,2022.2,5.88318559]
[1770453485230,5.77211189,2022.8,2022.2,5.88318559]
[1770453485426,0.00624126,2022.8,2022.2,5.88318559]
[1770453487230,6.09816148,2022.8,2022.7,9.87558631]
[1770453487739,6.09192022,2022.9,2022.7,9.87558631]
[1770453487935,5.55617206,2022.7,2021.8,6.56307057]
[1770453488139,5.55617206,2022.4,2021.8,6.56307057]
[1770453488338,2.91713906,2022.5,2022.1,6.56307057]
[1770453488531,43.75708594,2022.9,2022.1,6.56307057]
[1770453488731,43.75708594,2023.0,2022.1,6.56307057]
[1770453488930,0.00390586,2022.9,2022.4,6.56307057]
[1770453489130,0.00390586,2022.9,2021.6,0.36107257]
[1770453489131,6.09192022,2022.5,2021.6,6.92414314]
[1770453489332,6.09192022,2022.3,2021.6,7.17160314]
[1770453489532,43.75708594,2022.4,2021.6,7.17160314]
[1770453489736,7.17495881,2022.5,2021.9,6.88027271]
[1770453491144,7.17495881,2022.4,2021.9,6.88027271]
[1770453491438,7.17495881,2022.3,2021.9,6.88027271]
[1770453491643,50.93204475,2022.2,2021.8,6.93739589]
[1770453491839,7.0846552,2022.1,2021.8,0.24743]
[1770453492234,7.0846552,2022.1,2021.6,7.05103846]
[1770453493141,50.84174114,2022.1,2021.6,7.05103846]
[1770453493336,7.0846552,2022.0,2021.6,0.36107257]
[1770453493741,7.0846552,2021.9,2021.6,0.36107257]
[1770453494047,6.28041177,2021.9,2021.6,0.0059169]
[1770453494448,6.28041177,2021.9,2021.6,0.33094571]
[1770453494646,6.28041177,2021.9,2021.6,0.0059169]
[1770453495653,6.28041177,2021.9,2021.6,0.32103552]
[1770453496155,43.75708594,2022.1,2021.6,7.01100141]
[1770453500961,43.75708594,2022.2,2021.6,7.25846141]
[1770453501158,43.75708594,2022.1,2021.6,7.25846141]
[1770453502151,43.75708594,2022.2,2022.0,3.14831804]
[1770453502356,43.75708594,2022.1,2022.0,3.14831804]
[1770453502557,43.75708594,2022.1,2021.8,6.68996589]
[1770453503460,49.62297762,2022.1,2021.8,6.68996589]
[1770453503654,43.17770494,2022.2,2021.9,6.93739589]
[1770453503856,7.0846552,2022.5,2021.9,6.93739589]
[1770453504658,12.95054688,2022.7,2021.9,6.93739589]
[1770453505058,7.0846552,2022.6,2021.9,6.93739589]
[1770453506659,5.86589168,2022.7,2021.9,6.93739589]
[1770453507056,5.86589168,2022.7,2022.1,6.68996589]
[1770453507359,7.0846552,2022.8,2022.1,6.93736589]
[1770453511667,7.0846552,2022.7,2021.9,6.68996589]
[1770453512765,5.86589168,2022.8,2021.6,0.56850552]
[1770453512766,12.95445274,2022.9,2022.1,6.68996589]
[1770453512970,5.86589168,2023.1,2022.4,6.68996589]
[1770453513168,12.95054688,2023.2,2022.4,6.68996589]
[1770453513363,7.0846552,2023.1,2022.4,6.68996589]
[1770453513760,12.95054688,2023.1,2022.4,6.68996589]
[1770453513962,12.95471613,2023.1,2022.4,6.68996589]
[1770453514972,7.0846552,2023.0,2022.4,6.68996589]
[1770453515373,7.0846552,2022.9,2022.4,6.68996589]
[1770453515773,7.0846552,2022.9,2022.3,0.24738]
[1770453515976,7.00128644,2022.8,2022.3,0.24738]
[1770453516566,7.00128644,2022.8,2022.4,3.14831804]
[1770453516964,7.00128644,2022.8,2022.3,0.24738]
[1770453517168,7.00128644,2022.7,2022.1,6.77010545]
[1770453517574,5.86589168,2022.5,2021.8,7.01754545]
[1770453517771,7.00128644,2022.5,2021.8,7.01754545]
[1770453518080,5.86589168,2022.6,2021.8,7.01754545]
[1770453518281,12.86717812,2022.7,2022.0,6.77010545]
[1770453518873,12.86717812,2022.6,2022.0,6.77010545]
[1770453519072,7.00128644,2022.5,2021.9,0.24743]
[1770453519273,7.00128644,2022.5,2021.9,7.01753545]
[1770453519981,5.86589168,2022.6,2021.9,7.01753545]
[1770453519982,7.00128644,2022.3,2021.9,7.01753545]
[1770453520376,7.00128644,2022.3,2021.9,6.77010545]
[1770453521680,7.00128644,2022.3,2021.7,6.77010545]
[1770453522282,7.00128644,2022.3,2021.6,7.33861097]
[1770453522484,12.86717812,2022.3,2021.6,7.33861097]
[1770453523584,7.00128644,2022.2,2021.6,7.33861097]
[1770453524184,7.00128644,2022.4,2021.6,7.33861097]
[1770453525980,7.00128644,2022.2,2021.6,7.33861097]
[1770453527089,7.00128644,2022.1,2021.6,7.09114097]
[1770453528989,5.86589168,2022.3,2021.6,7.09114097]
[1770453529783,7.24868644,2022.2,2020.9,3.19212187]
[1770453529987,7.24868644,2022.2,2020.2,10.68089467]
[1770453529988,6.89264186,2021.5,2020.5,6.77010545]
[1770453530183,6.89264186,2021.4,2020.5,6.77010545]
[1770453530888,6.89800246,2021.4,2020.5,6.77601167]
[1770453531284,6.89800246,2021.4,2020.5,7.08772477]
[1770453531688,6.89800246,2021.4,2020.8,3.14831804]
[1770453531889,6.99639795,2021.3,2020.5,7.08772477]
[1770453532088,6.99639795,2021.0,2020.2,6.77010545]
[1770453532292,6.99639795,2021.0,2019.4,6.77010545]
[1770453533087,6.99639795,2021.0,2019.4,6.77419753]
[1770453533394,6.99639795,2021.0,2020.0,6.77010545]
[1770453533597,6.99639795,2021.0,2020.0,7.01776545]
[1770453533897,6.99639795,2021.0,2020.2,6.77010545]
[1770453534498,7.00037192,2020.9,2020.2,6.77010545]
[1770453536495,7.00037192,2020.9,2020.0,0.31188547]
[1770453536696,7.00037192,2020.9,2020.0,6.77010545]
[1770453537808,6.94651129,2021.1,2020.0,7.33950875]
[1770453538495,6.94651129,2021.1,2020.2,6.77010545]
[1770453539406,6.94651129,2021.1,2020.4,6.77010545]
[1770453539995,0.0053606,2021.4,2020.4,6.77010545]
[1770453539996,6.91706856,2021.4,2020.4,6.77010545]
[1770453541604,6.91706856,2021.4,2020.1,6.77010545]
[1770453541806,6.88095113,2021.2,2020.1,6.77010545]
[1770453543102,6.91525452,2021.4,2020.3,7.01772545]
[1770453543397,6.90307261,2021.4,2020.3,7.01772545]
[1770453546603,6.90307261,2021.4,2020.8,3.14831804]
[1770453547007,6.90307261,2021.4,2020.5,6.98222887]
[1770453547207,6.90307261,2021.4,2020.3,7.22984887]
[1770453547405,6.82495799,2021.2,2020.3,7.22984887]
[1770453548009,6.82495799,2021.2,2020.1,6.98222887]
[1770453548807,6.82768914,2020.9,2020.1,6.98222887]
[1770453552115,6.82768914,2020.9,2020.0,0.3217433]
[1770453552315,6.70826422,2020.8,2019.8,6.97689085]
[1770453552511,6.70826422,2020.8,2019.6,6.97689085]
[1770453552707,6.70826422,2020.7,2019.6,6.97689085]
[1770453552909,6.70826422,2020.7,2019.6,7.29080305]
[1770453553217,6.70826422,2020.6,2019.6,7.29080305]
[1770453553515,0.24752,2021.2,2019.6,7.29080305]
[1770453553516,6.70826422,2020.3,2019.6,7.29080305]
[1770453554118,6.70826422,2020.4,2019.6,7.29080305]
[1770453554314,6.70826422,2020.5,2019.6,7.29080305]
[1770453555617,6.70826422,2020.5,2019.6,0.3139122]
[1770453555920,6.70826422,2020.4,2019.4,6.98098293]
[1770453556220,5.86589168,2020.6,2019.4,6.98098293]
[1770453556221,6.70826422,2020.1,2019.4,0.33720863]
[1770453556420,6.70826422,2020.1,2019.2,6.697749]
[1770453556719,6.70826422,2020.1,2018.8,0.24781]
[1770453556720,6.70826422,2020.0,2018.9,6.97689085]
[1770453557316,6.70826422,2020.0,2018.9,0.00548366]
[1770453557514,6.70826422,2019.6,2018.9,0.00548366]
[1770453557720,6.71357841,2019.6,2018.9,0.00548366]
[1770453558115,6.70826422,2019.5,2018.9,6.98237451]
[1770453558819,6.70826422,2019.5,2018.9,0.00548366]
[1770453559412,6.70826422,2019.5,2018.5,6.97689085]
[1770453559608,6.70826422,2019.5,2018.5,7.31014605]
[1770453560213,6.70826422,2019.5,2018.5,0.3332552]
[1770453560412,6.70826422,2019.5,2018.5,0.00503451]
[1770453560610,6.70826422,2019.5,2018.5,6.98192536]
[1770453560814,6.70826422,2019.5,2018.5,7.32044301]
[1770453561214,6.70826422,2019.5,2018.5,0.00503451]
[1770453561418,6.70826422,2019.5,2018.2,6.97689085]
[1770453561419,6.70826422,2019.0,2018.2,6.97689085]
[1770453561617,6.70826422,2019.0,2018.3,3.14831804]
[1770453562419,6.70826422,2019.0,2018.3,3.15351024]
[1770453562924,3.64924076,2018.9,2017.7,6.97689085]
[1770453563422,3.64924076,2018.9,2017.7,7.31997185]
[1770453563818,3.64924076,2018.9,2017.7,7.32538835]
[1770453564424,3.64924076,2018.9,2017.8,0.24793]
[1770453564625,3.64924076,2018.9,2017.9,6.97689085]
[1770453564924,3.79043046,2019.1,2017.9,6.97689085]
[1770453567224,3.76423239,2019.3,2017.9,6.97689085]
[1770453567528,3.75074292,2019.5,2018.2,6.97689085]
[1770453567723,3.75074292,2019.5,2018.2,7.22477085]
[1770453570323,3.74886809,2019.4,2018.2,6.97689085]
[1770453571228,3.74886809,2019.4,2018.4,6.97689085]
[1770453572125,3.74886809,2019.4,2018.2,6.97689085]
[1770453572627,3.70811699,2019.3,2018.2,6.97689085]
[1770453572824,3.70811699,2019.2,2018.2,6.97689085]
[1770453573029,3.70811699,2019.2,2018.0,6.97689085]
[1770453574635,3.54849477,2019.1,2018.0,6.97689085]
[1770453575139,3.54849477,2019.0,2018.0,6.97689085]
[1770453576237,3.51971267,2018.9,2018.2,6.7994248]
[1770453576439,5.86589168,2019.3,2018.2,6.7994248]
[1770453576440,3.57886996,2019.1,2018.2,7.0473048]
[1770453577142,3.57886996,2019.1,2018.4,6.7994248]
[1770453577333,3.56120988,2019.3,2018.4,6.7994248]
[1770453577534,3.56120988,2019.3,2018.4,7.0472848]
[1770453577838,47.42841622,2019.5,2018.4,7.0472848]
[1770453578136,3.56245119,2019.5,2018.4,7.0472848]
[1770453578737,0.00531419,2019.6,2018.4,7.0472848]
[1770453579440,3.59715004,2019.6,2018.4,7.0472848]
[1770453580530,0.00531419,2019.6,2018.4,7.0472848]
[1770453580736,3.55901118,2019.6,2018.6,6.7994248]
[1770453581239,47.42497621,2019.6,2018.6,6.7994248]
[1770453581638,47.4086004,2019.6,2018.6,6.7994248]
[1770453582035,3.53732118,2019.5,2018.6,6.7994248]
[1770453582235,47.40328621,2019.5,2018.6,6.7994248]
[1770453582436,3.51978698,2019.4,2018.6,6.7994248]
[1770453583136,7.78262323,2019.6,2019.1,0.24777]
[1770453583437,6.92495775,2020.3,2019.1,0.24777]
[1770453584142,6.92495775,2020.3,2019.2,2.51474296]
[1770453584441,6.92890665,2020.3,2019.2,2.51877273]
[1770453584649,6.92890665,2020.3,2019.2,2.76653273]
[1770453586738,6.92890665,2020.3,2019.2,0.25178977]
[1770453588947,6.92890665,2020.3,2019.2,0.00402977]
[1770453589340,6.92495775,2020.2,2018.8,2.75070192]
[1770453590341,6.92495775,2020.2,2018.8,2.75549573]
[1770453590543,6.92495775,2020.2,2018.9,0.2478]
[1770453591034,6.92495775,2020.2,2018.9,2.99916035]
[1770453592444,10.01430474,2020.0,2018.8,0.00479381]
[1770453592643,0.0039489,2020.3,2018.8,2.93470794]
[1770453592644,6.92495775,2019.9,2018.8,2.93470794]
[1770453594743,6.92495775,2019.9,2018.8,0.00479381]
[1770453596535,7.28725392,2019.8,2018.8,0.00479381]
[1770453596851,6.92495775,2019.7,2018.1,2.51498894]
[1770453597237,6.92495775,2019.6,2018.1,2.51498894]
[1770453597843,6.92495775,2019.6,2018.1,2.52076111]
[1770453598044,6.92495775,2019.5,2018.1,2.52076111]
[1770453599448,6.92495775,2019.3,2018.1,2.52076111]
[1770453599944,6.92495775,2019.0,2017.8,2.95705392]
[1770453600251,6.92495775,2018.4,2017.7,0.343081]
[1770453600444,6.92495775,2018.4,2017.5,2.48747044]
[1770453600637,6.92495775,2018.4,2017.5,2.82076126]
[1770453601044,6.93095051,2018.4,2017.5,2.8270419]
[1770453601346,6.93095051,2018.4,2017.5,0.33957146]
[1770453603242,6.93095051,2018.4,2017.5,0.00628064]
[1770453603751,6.93095051,2018.4,2017.5,2.02194481]
[1770453604649,7.08999163,2018.6,2017.7,1.9923633]
[1770453605038,7.08999163,2019.3,2017.7,1.9923633]
[1770453605848,7.09345796,2019.3,2017.7,1.9923633]
[1770453606249,7.7805815,2019.2,2017.7,1.9923633]
[1770453613054,7.7805815,2019.2,2017.7,2.2403033]
[1770453614955,7.7805815,2019.2,2017.9,1.88528421]
[1770453615155,7.7805815,2019.2,2018.1,1.88528421]
[1770453620852,7.7805815,2019.2,2018.0,0.2479]
[1770453621053,7.7805815,2019.2,2017.9,1.7416899]
[1770453624362,7.81812889,2019.1,2017.9,1.7416899]
[1770453626560,7.81812889,2019.1,2017.9,1.9895999]
[1770453627559,7.81812889,2019.1,2017.7,12.39782158]
[1770453627756,7.81812889,2018.9,2017.8,1.55311659]
[1770453631670,7.81812889,2018.9,2017.8,1.80104659]
[1770453632364,10.68951052,2019.4,2018.9,1.39047228]
[1770453632365,7.81812889,2019.4,2018.9,1.39047228]
[1770453632571,7.81812889,2020.0,2018.9,1.39047228]
[1770453632862,7.81812889,2020.0,2018.8,1.63337041]
[1770453633563,7.82159801,2020.0,2018.8,0.24781]
[1770453633765,7.82159801,2020.0,2018.6,1.36427454]
[1770453636358,7.82159801,2020.0,2018.9,1.36328405]
[1770453636668,7.82159801,2020.0,2018.8,0.24781]
[1770453637066,7.82159801,2020.0,2018.8,1.67953394]
[1770453637871,7.82159801,2020.0,2018.8,0.24781]
[1770453638171,7.82159801,2020.0,2018.8,1.63754746]
[1770453643071,7.82159801,2020.0,2018.8,1.38973746]
[1770453643370,7.82159801,2020.0,2018.6,1.18912903]
[1770453645472,7.82159801,2020.0,2018.6,1.43695903]
[1770453645664,7.82159801,2020.0,2018.6,1.18912903]
[1770453645965,7.82159801,2020.0,2018.9,1.25971327]
[1770453650175,7.82159801,2020.0,2018.9,1.50751327]
[1770453652773,7.60366511,2020.7,2019.9,1.05544547]
[1770453652978,7.60366511,2020.7,2020.1,4.1507671]
[1770453653178,6.6691242,2020.7,2020.1,1.05544547]
[1770453653478,7.60366511,2021.4,2020.4,1.96919122]
[1770453653683,7.60366511,2021.4,2020.3,3.09532163]
[1770453653984,7.60788422,2021.4,2020.4,0.00541695]
[1770453654183,7.60788422,2021.4,2020.4,2.0200778]
[1770453654781,7.60788422,2021.4,2020.6,3.09532163]
[1770453654978,7.60788422,2021.4,2020.5,2.21483011]
[1770453655173,7.60788422,2021.4,2020.5,0.2476]
[1770453655583,7.60788422,2021.4,2020.5,2.19368676]
[1770453656279,7.60788422,2021.4,2020.4,0.00541695]
[1770453656280,7.60366511,2022.5,2021.0,7.14047274]
[1770453656887,7.60366511,2022.5,2021.3,7.14047274]
[1770453657177,7.60825715,2022.5,2021.3,7.14047274]
[1770453658080,7.60825715,2022.5,2021.6,7.14047274]
[1770453658278,7.60825715,2022.5,2021.9,7.14047274]
[1770453658478,0.00459204,2022.5,2021.9,7.14429292]
[1770453659077,7.60825715,2022.5,2021.9,7.14429292]
[1770453659278,7.60825715,2022.5,2021.9,0.00382018]
[1770453660582,7.60825715,2022.5,2021.5,7.14047274]
[1770453660885,0.00459204,2022.5,2022.0,7.14047274]
[1770453661083,7.60366511,2022.7,2022.0,7.38789274]
[1770453661479,7.60366511,2022.7,2022.1,7.14047274]
[1770453661675,3.07799687,2022.7,2021.9,7.14047274]
[1770453662184,3.08160401,2022.7,2021.9,7.14531198]
[1770453662781,0.00360714,2022.7,2022.1,7.14047274]
[1770453663086,0.00360714,2022.7,2022.1,7.38787274]
[1770453663585,7.60727225,2022.7,2022.1,7.38787274]
[1770453663783,0.00360714,2022.7,2022.1,7.38787274]
[1770453665578,7.60366511,2023.1,2022.3,7.14047274]
[1770453666580,7.61347439,2023.7,2023.0,7.32598397]
[1770453666894,7.61347439,2024.5,2023.0,7.32598397]
[1770453667087,7.61347439,2024.5,2022.9,0.2473]
[1770453667292,7.69948856,2024.5,2022.9,7.57328397]
[1770453667583,7.70540371,2024.5,2022.9,7.57328397]
[1770453668092,7.95251371,2024.5,2022.9,0.2473]
[1770453668292,7.95251371,2024.5,2022.9,7.57328397]
[1770453670986,3.08414838,2024.4,2022.9,0.2473]
[1770453671191,7.59768825,2024.3,2022.4,7.32392432]
[1770453671383,7.59768825,2024.3,2022.4,7.57129432]
[1770453673491,7.84483825,2024.2,2022.4,7.32392432]
[1770453678096,0.09192932,2024.5,2022.4,7.32392432]
[1770453678097,7.84486825,2024.0,2022.4,7.32392432]
[1770453678498,7.59768825,2023.7,2022.4,7.32392432]
[1770453678800,7.59768825,2023.5,2022.2,7.32392432]
[1770453679003,7.84492825,2023.5,2022.0,7.32392432]
[1770453679998,7.84494825,2023.3,2022.0,7.32392432]
[1770453681090,7.59768825,2023.5,2022.0,7.57134432]
[1770453681294,7.59768825,2023.5,2022.4,7.32392432]
[1770453686197,7.59768825,2023.5,2022.5,7.32392432]
[1770453687207,7.59768825,2023.5,2022.5,10.26914999]
[1770453687399,7.59768825,2023.5,2022.6,7.32392432]
[1770453690106,7.59768825,2023.5,2022.7,7.32392432]
[1770453692815,7.59768825,2023.5,2022.5,7.34670476]
[1770453693113,7.59768825,2023.5,2022.4,7.32392432]
[1770453693516,7.59768825,2023.5,2022.3,3.19260567]
[1770453693517,7.59768825,2023.5,2022.3,0.24738]
[1770453693708,7.59768825,2023.5,2022.3,7.57130432]
[1770453693905,7.59768825,2023.5,2022.2,2.94522567]
[1770453694111,7.59768825,2023.5,2022.1,7.57132432]
[1770453694310,7.59768825,2023.5,2022.3,7.57130432]
[1770453696109,7.59768825,2023.5,2022.2,2.95761558]
[1770453696309,7.59768825,2023.5,2022.3,7.11418819]
[1770453696915,6.97180598,2023.3,2022.3,7.11418819]
[1770453697317,6.97180598,2023.3,2022.1,7.11418819]
[1770453697517,6.97180598,2023.2,2021.9,7.11902743]
[1770453698217,6.97180598,2023.0,2021.9,0.00483924]
[1770453698419,6.97723818,2023.0,2021.9,7.11902743]
[1770453699323,6.97180598,2022.9,2021.9,7.11902743]
[1770453700128,0.0054322,2023.0,2022.2,7.11418819]
[1770453701825,6.97723818,2023.0,2022.2,7.11418819]
[1770453702428,6.97723818,2023.0,2022.1,7.11418819]
[1770453702816,6.97723818,2023.0,2021.9,10.07664301]
[1770453703125,6.97723818,2023.0,2021.9,7.11902743]
[1770453714226,14.28750948,2023.0,2021.9,7.11902743]
[1770453714530,6.97180598,2022.9,2021.9,7.11902743]
[1770453715530,7.3157035,2023.0,2021.9,7.11902743]
[1770453715727,6.97180598,2024.1,2022.6,7.36152819]
[1770453716833,7.22468109,2024.1,2022.6,7.11418819]
[1770453720241,6.97751109,2024.1,2022.7,7.11418819]
[1770453720539,6.97751109,2024.1,2022.8,7.11418819]
[1770453720730,6.97751109,2024.1,2022.9,7.11418819]
[1770453721538,6.97751109,2024.1,2023.0,7.11418819]
[1770453724534,7.22467109,2024.1,2023.0,7.11418819]
[1770453727642,7.22467109,2024.1,2023.0,7.53495343]
[1770453730054,0.00570511,2024.1,2023.3,7.18098557]
[1770453730842,10.38342171,2024.7,2023.6,7.18098557]
[1770453730843,6.70785108,2024.7,2023.6,7.18098557]
[1770453731751,6.71296426,2024.7,2023.6,7.18614614]
[1770453732458,6.71296426,2024.7,2023.8,7.18098557]
[1770453734250,6.71296426,2024.7,2023.6,7.18614614]
[1770453735353,6.70785108,2024.5,2023.6,0.00516057]
[1770453737147,6.95497108,2024.5,2023.6,0.00516057]
[1770453737550,6.95497108,2024.5,2023.3,7.18098557]
[1770453738257,6.70785108,2024.3,2023.3,7.18098557]
[1770453738646,6.70785108,2024.3,2023.3,7.18463531]
[1770453742260,6.95499108,2024.3,2023.3,7.18463531]
[1770453742563,6.70785108,2023.9,2023.3,0.00364974]
[1770453743159,6.70785108,2023.9,2023.0,7.60175081]
[1770453743958,6.70785108,2023.9,2023.0,7.60645218]
[1770453744351,6.70785108,2024.3,2023.3,7.18098557]
[1770453749964,6.95499108,2024.3,2023.3,7.18098557]
[1770453750165,6.70785108,2024.1,2023.1,7.18098557]
[1770453757778,6.42166044,2023.9,2023.0,6.661803]
[1770453759268,6.42166044,2023.9,2023.0,0.00470137]
[1770453759462,6.42166044,2023.9,2022.3,7.50726448]
[1770453759463,6.42166044,2023.6,2022.7,6.65710163]
[1770453760273,6.42166044,2023.6,2022.7,7.04731085]
[1770453760464,6.42166044,2023.6,2022.7,7.05370289]
[1770453770173,15.22177113,2023.8,2022.9,6.65710163]
[1770453770376,6.42166044,2023.8,2022.9,6.65710163]
[1770453771878,6.42166044,2024.0,2023.1,3.07923945]
[1770453772078,6.42166044,2024.2,2023.2,6.65710163]
[1770453777087,6.42166044,2024.4,2023.4,6.65710163]
[1770453777989,6.42166044,2024.6,2023.4,6.65710163]
[1770453778484,6.42166044,2024.6,2023.7,6.65710163]
[1770453780087,6.42166044,2024.6,2023.3,6.65710163]
[1770453780291,6.66877044,2024.5,2023.3,6.65710163]
[1770453781189,6.42166044,2024.1,2023.1,6.65710163]
[1770453781590,3.08048006,2023.6,2021.8,5.56380108]
[1770453781795,6.42166044,2023.4,2021.8,5.56380108]
[1770453782093,6.66891044,2023.4,2021.8,5.56380108]
[1770453782693,6.66891044,2023.4,2021.8,5.95889052]
[1770453783588,6.66895044,2023.1,2021.8,5.95889052]
[1770453783794,6.67337095,2023.1,2021.8,0.39508944]
[1770453784094,6.67337095,2023.1,2021.8,6.48419745]
[1770453784989,6.42166044,2022.8,2021.8,0.00536792]
[1770453785293,6.66898044,2022.8,2021.8,0.00536792]
[1770453786090,6.66898044,2022.8,2021.8,6.21575431]
[1770453786287,6.66898044,2022.8,2021.8,0.00536792]
[1770453792692,6.66898044,2022.8,2021.8,5.91785833]
[1770453793494,6.42166044,2022.8,2021.8,5.91785833]
[1770453794598,6.60031082,2023.0,2021.8,5.91785833]
[1770453794791,0.00442051,2023.1,2021.8,5.91785833]
[1770453798894,6.60473133,2023.1,2021.8,5.91785833]
[1770453799203,6.85202133,2023.1,2021.8,5.91785833]
[1770453800899,0.00442051,2023.1,2021.8,5.91785833]